[Event "Early-Titled-Tuesday-Blitz-January-30-2024"]
[Site "Chess.com"]
[Date "2024.01.30"]
[Round "3"]
[White "ACollins05"]
[Black "Willhaven3"]
[Result "1/2-1/2"]
[WhiteElo "2460"]
[BlackElo "2616"]
[TimeControl "180+1"]
[EndTime "8:32:44 PST"]
[Termination "Game drawn by stalemate"]

1. d4 {[%clk 0:03:00.7]} 1... Nf6 {[%clk 0:02:58.5]} 2. c4 {[%clk 0:03:00]} 2...
e6 {[%clk 0:02:58.8]} 3. Nf3 {[%clk 0:02:59.8]} 3... d5 {[%clk 0:02:58.7]} 4. g3
{[%clk 0:02:59.9]} 4... Be7 {[%clk 0:02:58.6]} 5. Bg2 {[%clk 0:02:59.6]} 5...
O-O {[%clk 0:02:58.9]} 6. O-O {[%clk 0:02:59.4]} 6... dxc4 {[%clk 0:02:58.2]} 7.
a4 {[%clk 0:02:46]} 7... Nc6 {[%clk 0:02:56]} 8. Na3 {[%clk 0:02:41.8]} 8... Na5
{[%clk 0:02:54.3]} 9. Qc2 {[%clk 0:02:40.9]} 9... c5 {[%clk 0:02:47.1]} 10. Nxc4
{[%clk 0:02:38.7]} 10... cxd4 {[%clk 0:02:31.9]} 11. Nxa5 {[%clk 0:02:35]} 11...
Qxa5 {[%clk 0:02:29.2]} 12. Nxd4 {[%clk 0:02:35]} 12... Bb4 {[%clk 0:02:17.1]}
13. Bd2 {[%clk 0:02:19.6]} 13... e5 {[%clk 0:01:53.5]} 14. Nb3 {[%clk
0:02:15.5]} 14... Qb6 {[%clk 0:01:52.9]} 15. a5 {[%clk 0:02:14.4]} 15... Qb5
{[%clk 0:01:52.6]} 16. Bxb4 {[%clk 0:02:05.8]} 16... Qxb4 {[%clk 0:01:53.5]} 17.
a6 {[%clk 0:02:06]} 17... Rb8 {[%clk 0:01:45.5]} 18. axb7 {[%clk 0:01:46.5]}
18... Bxb7 {[%clk 0:01:46.4]} 19. Ra3 {[%clk 0:01:33.6]} 19... Bxg2 {[%clk
0:01:32]} 20. Kxg2 {[%clk 0:01:34.5]} 20... Rfc8 {[%clk 0:01:31.5]} 21. Qd3
{[%clk 0:01:16.3]} 21... Rd8 {[%clk 0:01:21.1]} 22. Qc3 {[%clk 0:01:08.1]} 22...
Qe4+ {[%clk 0:01:17.5]} 23. Qf3 {[%clk 0:01:05.8]} 23... Qc2 {[%clk 0:01:15.8]}
24. Qc3 {[%clk 0:01:00.6]} 24... Qxe2 {[%clk 0:01:02]} 25. Re1 {[%clk
0:00:59.3]} 25... Qb5 {[%clk 0:01:02.3]} 26. Rxe5 {[%clk 0:00:54.7]} 26... Qb7+
{[%clk 0:00:59]} 27. Qf3 {[%clk 0:00:54.3]} 27... Qc7 {[%clk 0:00:59]} 28. Rc5
{[%clk 0:00:48.4]} 28... Qd7 {[%clk 0:00:59]} 29. Rca5 {[%clk 0:00:45]} 29...
Ra8 {[%clk 0:00:40.2]} 30. Nc5 {[%clk 0:00:44.7]} 30... Qe7 {[%clk 0:00:39.8]}
31. Nd3 {[%clk 0:00:38.3]} 31... h6 {[%clk 0:00:27.5]} 32. Nf4 {[%clk
0:00:37.4]} 32... Qb4 {[%clk 0:00:16.1]} 33. Rxa7 {[%clk 0:00:31.3]} 33... Rxa7
{[%clk 0:00:15.9]} 34. Rxa7 {[%clk 0:00:32.2]} 34... Qxb2 {[%clk 0:00:15.9]} 35.
Nh5 {[%clk 0:00:29.2]} 35... Nxh5 {[%clk 0:00:12.8]} 36. Qxf7+ {[%clk
0:00:28.6]} 36... Kh8 {[%clk 0:00:13]} 37. Qxh5 {[%clk 0:00:26.9]} 37... Rf8
{[%clk 0:00:12.9]} 38. Qc5 {[%clk 0:00:24]} 38... Qf6 {[%clk 0:00:10.9]} 39. Qe3
{[%clk 0:00:24]} 39... Rd8 {[%clk 0:00:10.2]} 40. Re7 {[%clk 0:00:20.8]} 40...
Rf8 {[%clk 0:00:09.8]} 41. Re4 {[%clk 0:00:19.8]} 41... Kg8 {[%clk 0:00:09.1]}
42. Rf4 {[%clk 0:00:19.2]} 42... Qd8 {[%clk 0:00:09.7]} 43. Qb3+ {[%clk
0:00:17.2]} 43... Kh8 {[%clk 0:00:09.6]} 44. Rxf8+ {[%clk 0:00:17.1]} 44... Qxf8
{[%clk 0:00:10.5]} 45. Qf3 {[%clk 0:00:17.2]} 45... Qd8 {[%clk 0:00:10.2]} 46.
h4 {[%clk 0:00:17.4]} 46... Kg8 {[%clk 0:00:10.4]} 47. Qb3+ {[%clk 0:00:16.9]}
47... Kh8 {[%clk 0:00:10.5]} 48. Qe3 {[%clk 0:00:17.1]} 48... Kg8 {[%clk
0:00:10.5]} 49. Kh2 {[%clk 0:00:17.6]} 49... Kh8 {[%clk 0:00:10.7]} 50. Qf4
{[%clk 0:00:17]} 50... Kg8 {[%clk 0:00:10.9]} 51. h5 {[%clk 0:00:17.4]} 51...
Qe8 {[%clk 0:00:10]} 52. g4 {[%clk 0:00:17.5]} 52... Qe2 {[%clk 0:00:08.4]} 53.
Kg3 {[%clk 0:00:17.2]} 53... Qd3+ {[%clk 0:00:08.1]} 54. Qf3 {[%clk 0:00:16.9]}
54... Qd8 {[%clk 0:00:09]} 55. Qe3 {[%clk 0:00:15.9]} 55... Qd6+ {[%clk
0:00:08.9]} 56. f4 {[%clk 0:00:16.3]} 56... Qd8 {[%clk 0:00:09.8]} 57. Qe6+
{[%clk 0:00:15.3]} 57... Kf8 {[%clk 0:00:09.8]} 58. Qf5+ {[%clk 0:00:15.2]}
58... Kg8 {[%clk 0:00:10.1]} 59. Qe5 {[%clk 0:00:15.5]} 59... Qd3+ {[%clk
0:00:09.6]} 60. Kf2 {[%clk 0:00:14.2]} 60... Qc2+ {[%clk 0:00:09.7]} 61. Qe2
{[%clk 0:00:13.6]} 61... Qc5+ {[%clk 0:00:09.4]} 62. Kg3 {[%clk 0:00:13.8]}
62... Qd4 {[%clk 0:00:08.2]} 63. Kf3 {[%clk 0:00:11.7]} 63... Qd5+ {[%clk
0:00:07.8]} 64. Qe4 {[%clk 0:00:11.9]} 64... Qd1+ {[%clk 0:00:08]} 65. Kg3
{[%clk 0:00:12.3]} 65... Qg1+ {[%clk 0:00:07.7]} 66. Qg2 {[%clk 0:00:12.4]}
66... Qe3+ {[%clk 0:00:07.7]} 67. Qf3 {[%clk 0:00:11.4]} 67... Qg1+ {[%clk
0:00:07.9]} 68. Kh3 {[%clk 0:00:11.8]} 68... Kf8 {[%clk 0:00:07.2]} 69. f5
{[%clk 0:00:11.3]} 69... Qe1 {[%clk 0:00:06.8]} 70. f6 {[%clk 0:00:10.6]} 70...
Qe5 {[%clk 0:00:05.3]} 71. fxg7+ {[%clk 0:00:10.3]} 71... Kxg7 {[%clk
0:00:06.2]} 72. Qf5 {[%clk 0:00:09.6]} 72... Qe3+ {[%clk 0:00:05.7]} 73. Kh2
{[%clk 0:00:09.4]} 73... Qd2+ {[%clk 0:00:05.3]} 74. Kg3 {[%clk 0:00:09.9]}
74... Qe3+ {[%clk 0:00:05.5]} 75. Qf3 {[%clk 0:00:10]} 75... Qg1+ {[%clk
0:00:05.7]} 76. Kh3 {[%clk 0:00:10.2]} 76... Qd4 {[%clk 0:00:05.6]} 77. Qg3
{[%clk 0:00:08.2]} 77... Qd2 {[%clk 0:00:04.4]} 78. Kh4 {[%clk 0:00:06.7]} 78...
Qg5+ {[%clk 0:00:04.1]} 79. Kh3 {[%clk 0:00:07.3]} 79... Qd2 {[%clk 0:00:05]}
80. Qc7+ {[%clk 0:00:05.8]} 80... Kf8 {[%clk 0:00:04.8]} 81. Qc8+ {[%clk
0:00:05.7]} 81... Kg7 {[%clk 0:00:05.1]} 82. Qb7+ {[%clk 0:00:05]} 82... Kf8
{[%clk 0:00:05.3]} 83. Qb8+ {[%clk 0:00:04.6]} 83... Kf7 {[%clk 0:00:05.5]} 84.
Qc7+ {[%clk 0:00:04.2]} 84... Kf8 {[%clk 0:00:05.6]} 85. Qg3 {[%clk 0:00:03.7]}
85... Kf7 {[%clk 0:00:05.7]} 86. Qf3+ {[%clk 0:00:03.7]} 86... Kg7 {[%clk
0:00:05.6]} 87. Qb7+ {[%clk 0:00:02.9]} 87... Kf8 {[%clk 0:00:05.6]} 88. Qf3+
{[%clk 0:00:03.8]} 88... Kg7 {[%clk 0:00:05.8]} 89. Qf5 {[%clk 0:00:04.4]} 89...
Kg8 {[%clk 0:00:05.7]} 90. Qg6+ {[%clk 0:00:04.4]} 90... Kf8 {[%clk 0:00:06.3]}
91. Qf6+ {[%clk 0:00:04.8]} 91... Kg8 {[%clk 0:00:06.9]} 92. g5 {[%clk
0:00:04.9]} 92... Qxg5 {[%clk 0:00:06.3]} 93. Qxg5+ {[%clk 0:00:04.4]} 93...
hxg5 {[%clk 0:00:07.2]} 94. Kg4 {[%clk 0:00:05.1]} 94... Kg7 {[%clk 0:00:08]}
95. Kxg5 {[%clk 0:00:06]} 95... Kh7 {[%clk 0:00:08.7]} 96. h6 {[%clk 0:00:06.9]}
96... Kh8 {[%clk 0:00:08.9]} 97. Kg6 {[%clk 0:00:07.8]} 97... Kg8 {[%clk
0:00:09.6]} 98. h7+ {[%clk 0:00:08.7]} 98... Kh8 {[%clk 0:00:10.5]} 99. Kh6
{[%clk 0:00:09.4]} 1/2-1/2

[Event "Early-Titled-Tuesday-Blitz-January-30-2024"]
[Site "Chess.com"]
[Date "2024.01.30"]
[Round "3"]
[White "SharapovEvgeny"]
[Black "WhiteKnight2612"]
[Result "0-1"]
[WhiteElo "2533"]
[BlackElo "2828"]
[TimeControl "180+1"]
[EndTime "8:32:51 PST"]
[Termination "WhiteKnight2612 won on time"]

1. e4 {[%clk 0:03:00.1]} 1... c5 {[%clk 0:02:58.2]} 2. Nf3 {[%clk 0:03:00.1]}
2... d6 {[%clk 0:02:58.3]} 3. d4 {[%clk 0:03:00.4]} 3... cxd4 {[%clk 0:02:59.2]}
4. Nxd4 {[%clk 0:03:00.8]} 4... Nf6 {[%clk 0:03:00.1]} 5. f3 {[%clk 0:03:01.5]}
5... Nc6 {[%clk 0:03:01]} 6. c4 {[%clk 0:03:01.4]} 6... g6 {[%clk 0:02:59.5]} 7.
Be3 {[%clk 0:03:01.1]} 7... Bg7 {[%clk 0:03:00]} 8. Nc3 {[%clk 0:03:01.7]} 8...
O-O {[%clk 0:03:00.3]} 9. Be2 {[%clk 0:03:02.2]} 9... Bd7 {[%clk 0:03:00.9]} 10.
O-O {[%clk 0:03:02.2]} 10... Rc8 {[%clk 0:03:01.5]} 11. Qd2 {[%clk 0:03:02.3]}
11... a6 {[%clk 0:03:02.1]} 12. Rac1 {[%clk 0:03:01.9]} 12... Re8 {[%clk
0:02:40.7]} 13. Nd5 {[%clk 0:02:59.3]} 13... Nxd5 {[%clk 0:02:40.4]} 14. exd5
{[%clk 0:02:59.4]} 14... Nxd4 {[%clk 0:02:31.2]} 15. Bxd4 {[%clk 0:02:59.6]}
15... Bf8 {[%clk 0:02:30.1]} 16. Rfe1 {[%clk 0:02:58.3]} 16... b5 {[%clk
0:02:27.3]} 17. b3 {[%clk 0:02:57.9]} 17... e5 {[%clk 0:02:23.3]} 18. dxe6
{[%clk 0:02:57.7]} 18... fxe6 {[%clk 0:02:21.8]} 19. Bf1 {[%clk 0:02:54.8]}
19... Qh4 {[%clk 0:02:16.3]} 20. Bf2 {[%clk 0:02:48.3]} 20... Qh5 {[%clk
0:02:14.4]} 21. Rcd1 {[%clk 0:02:42.1]} 21... Rc7 {[%clk 0:02:02.8]} 22. Bg3
{[%clk 0:02:36]} 22... e5 {[%clk 0:02:00.7]} 23. cxb5 {[%clk 0:02:30.4]} 23...
axb5 {[%clk 0:01:59.4]} 24. Bxb5 {[%clk 0:02:24.4]} 24... Bxb5 {[%clk
0:01:57.6]} 25. Qd5+ {[%clk 0:02:24]} 25... Kg7 {[%clk 0:01:57.2]} 26. Qxb5
{[%clk 0:02:23.7]} 26... Rec8 {[%clk 0:01:56.5]} 27. a4 {[%clk 0:02:12.7]} 27...
Qf5 {[%clk 0:01:55.9]} 28. Qd3 {[%clk 0:02:10.3]} 28... Rc3 {[%clk 0:01:50]} 29.
Qxf5 {[%clk 0:02:06.4]} 29... gxf5 {[%clk 0:01:50.9]} 30. Rb1 {[%clk 0:02:03.7]}
30... Rc2 {[%clk 0:01:46]} 31. b4 {[%clk 0:02:00.9]} 31... Ra2 {[%clk
0:01:45.4]} 32. Rec1 {[%clk 0:01:59.3]} 32... Rxc1+ {[%clk 0:01:41.1]} 33. Rxc1
{[%clk 0:01:59.4]} 33... Rxa4 {[%clk 0:01:40.5]} 34. Rb1 {[%clk 0:01:59.2]}
34... Ra7 {[%clk 0:01:20.5]} 35. b5 {[%clk 0:01:59.1]} 35... Rb7 {[%clk
0:01:21]} 36. f4 {[%clk 0:01:55.2]} 36... Kf6 {[%clk 0:01:19.2]} 37. Bf2 {[%clk
0:01:49.7]} 37... Ke6 {[%clk 0:01:15.7]} 38. Kf1 {[%clk 0:01:49.3]} 38... Be7
{[%clk 0:01:15.3]} 39. Ke2 {[%clk 0:01:48.8]} 39... Bd8 {[%clk 0:01:08.2]} 40.
b6 {[%clk 0:01:45.2]} 40... h5 {[%clk 0:00:57.8]} 41. Kd3 {[%clk 0:01:45.2]}
41... Kd5 {[%clk 0:00:56.9]} 42. fxe5 {[%clk 0:01:42.4]} 42... dxe5 {[%clk
0:00:56.7]} 43. Rb5+ {[%clk 0:01:41.6]} 43... Kd6 {[%clk 0:00:56.7]} 44. Kc4
{[%clk 0:01:37.6]} 44... Ke6 {[%clk 0:00:43.8]} 45. Kc5 {[%clk 0:01:33.3]} 45...
Rg7 {[%clk 0:00:37.8]} 46. b7 {[%clk 0:01:30]} 46... Bc7 {[%clk 0:00:36.4]} 47.
g3 {[%clk 0:01:15.1]} 47... Bb8 {[%clk 0:00:35.4]} 48. Kb6 {[%clk 0:01:10.6]}
48... Rd7 {[%clk 0:00:29.3]} 49. Rc5 {[%clk 0:00:53.4]} 49... Rd2 {[%clk
0:00:29.6]} 50. Rc8 {[%clk 0:00:46]} 50... Rb2+ {[%clk 0:00:29.5]} 51. Kc6
{[%clk 0:00:45.3]} 51... Bd6 {[%clk 0:00:29.9]} 52. Re8+ {[%clk 0:00:37.1]}
52... Kf7 {[%clk 0:00:27.6]} 53. Ra8 {[%clk 0:00:20.3]} 53... Ke7 {[%clk
0:00:22.5]} 54. Ba7 {[%clk 0:00:17.6]} 54... Rc2+ {[%clk 0:00:22.3]} 55. Kb5
{[%clk 0:00:17.5]} 55... Rxh2 {[%clk 0:00:18.9]} 56. b8=Q {[%clk 0:00:16.2]}
56... Bxb8 {[%clk 0:00:19.4]} 57. Bxb8 {[%clk 0:00:16.1]} 57... e4 {[%clk
0:00:16.1]} 58. Kc4 {[%clk 0:00:15.4]} 58... Rd2 {[%clk 0:00:15.1]} 59. Bf4
{[%clk 0:00:13.8]} 59... Rd3 {[%clk 0:00:15.6]} 60. Ra5 {[%clk 0:00:13.1]} 60...
Kf6 {[%clk 0:00:14.5]} 61. Ra6+ {[%clk 0:00:13.1]} 61... Kg7 {[%clk 0:00:14.9]}
62. Be5+ {[%clk 0:00:12.6]} 62... Kh7 {[%clk 0:00:14.5]} 63. Rf6 {[%clk
0:00:11.4]} 63... Rf3 {[%clk 0:00:14.3]} 64. Bf4 {[%clk 0:00:11]} 64... h4
{[%clk 0:00:14]} 65. Rxf5 {[%clk 0:00:10]} 65... hxg3 {[%clk 0:00:14]} 66. Rh5+
{[%clk 0:00:09]} 66... Kg6 {[%clk 0:00:13.1]} 67. Rh6+ {[%clk 0:00:09.2]} 67...
Kf5 {[%clk 0:00:13.2]} 68. Bxg3 {[%clk 0:00:07.8]} 68... Rxg3 {[%clk 0:00:13.3]}
69. Rh5+ {[%clk 0:00:06.8]} 69... Kf4 {[%clk 0:00:13.3]} 70. Rh4+ {[%clk
0:00:07]} 70... Ke3 {[%clk 0:00:13.5]} 71. Kc3 {[%clk 0:00:07]} 71... Ke2+
{[%clk 0:00:12]} 72. Kc2 {[%clk 0:00:07.1]} 72... e3 {[%clk 0:00:12.6]} 73. Rh2+
{[%clk 0:00:07]} 73... Ke1 {[%clk 0:00:11.2]} 74. Rh1+ {[%clk 0:00:07.2]} 74...
Kf2 {[%clk 0:00:11.4]} 75. Kd3 {[%clk 0:00:06.5]} 75... e2+ {[%clk 0:00:10.5]}
76. Kd2 {[%clk 0:00:07]} 76... Rg2 {[%clk 0:00:08.7]} 77. Re1 {[%clk 0:00:04.5]}
77... Kf3 {[%clk 0:00:09.2]} 78. Kd3 {[%clk 0:00:04]} 78... Rg8 {[%clk
0:00:08.8]} 79. Rh1 {[%clk 0:00:01.6]} 79... Rd8+ {[%clk 0:00:08.6]} 80. Kc2
{[%clk 0:00:02]} 80... Kf2 {[%clk 0:00:08.4]} 81. Rh2+ {[%clk 0:00:02.1]} 81...
Kf3 {[%clk 0:00:08.3]} 82. Rh1 {[%clk 0:00:01.5]} 82... Kg2 {[%clk 0:00:08.7]}
0-1

[Event "Early-Titled-Tuesday-Blitz-January-30-2024"]
[Site "Chess.com"]
[Date "2024.01.30"]
[Round "3"]
[White "BlackGod93"]
[Black "jjlai1111"]
[Result "1-0"]
[WhiteElo "2568"]
[BlackElo "2298"]
[TimeControl "180+1"]
[EndTime "8:33:27 PST"]
[Termination "BlackGod93 won by checkmate"]

1. e4 {[%clk 0:02:37.5]} 1... c6 {[%clk 0:02:59]} 2. d4 {[%clk 0:02:34.9]} 2...
d5 {[%clk 0:02:59.1]} 3. exd5 {[%clk 0:02:35.2]} 3... cxd5 {[%clk 0:02:58.5]} 4.
c4 {[%clk 0:02:36.1]} 4... Nf6 {[%clk 0:02:57.2]} 5. Nc3 {[%clk 0:02:34.4]} 5...
Nc6 {[%clk 0:02:57.5]} 6. Nf3 {[%clk 0:02:32.4]} 6... Bg4 {[%clk 0:02:51.9]} 7.
Be2 {[%clk 0:02:26.7]} 7... e6 {[%clk 0:02:44]} 8. Be3 {[%clk 0:02:21.7]} 8...
Be7 {[%clk 0:02:34.3]} 9. O-O {[%clk 0:02:20.7]} 9... O-O {[%clk 0:02:34.4]} 10.
c5 {[%clk 0:02:18.9]} 10... Ne4 {[%clk 0:02:29.2]} 11. Nd2 {[%clk 0:02:05.4]}
11... Nxc3 {[%clk 0:01:57.4]} 12. bxc3 {[%clk 0:02:04.1]} 12... Bxe2 {[%clk
0:01:58]} 13. Qxe2 {[%clk 0:02:04.5]} 13... Qa5 {[%clk 0:01:49.5]} 14. Rab1
{[%clk 0:01:46.1]} 14... b6 {[%clk 0:01:43.7]} 15. Nb3 {[%clk 0:01:38.9]} 15...
Qxc3 {[%clk 0:01:29.2]} 16. Rfc1 {[%clk 0:01:37.6]} 16... Qb4 {[%clk 0:01:23.9]}
17. cxb6 {[%clk 0:01:13]} 17... Qxb6 {[%clk 0:01:15.3]} 18. Nc5 {[%clk
0:00:57.1]} 18... Qc7 {[%clk 0:01:05.9]} 19. Rb7 {[%clk 0:00:33.3]} 19... Qc8
{[%clk 0:01:05.6]} 20. Qb5 {[%clk 0:00:31.4]} 20... Rb8 {[%clk 0:00:41.7]} 21.
Rxb8 {[%clk 0:00:27.1]} 21... Nxb8 {[%clk 0:00:42.3]} 22. Nb7 {[%clk 0:00:08.8]}
22... Qe8 {[%clk 0:00:40.4]} 23. Qa5 {[%clk 0:00:08.9]} 23... Bf6 {[%clk
0:00:23.1]} 24. Qxa7 {[%clk 0:00:08.5]} 24... Qb5 {[%clk 0:00:20.4]} 25. Nd6
{[%clk 0:00:07.7]} 25... Qb2 {[%clk 0:00:19.3]} 26. g3 {[%clk 0:00:06.6]} 26...
e5 {[%clk 0:00:15.6]} 27. dxe5 {[%clk 0:00:05.1]} 27... Bxe5 {[%clk 0:00:16]}
28. Nf5 {[%clk 0:00:05]} 28... d4 {[%clk 0:00:15]} 29. Nxd4 {[%clk 0:00:04.8]}
29... Bxd4 {[%clk 0:00:15.4]} 30. Qxd4 {[%clk 0:00:05.5]} 30... Qxa2 {[%clk
0:00:15.9]} 31. h4 {[%clk 0:00:05.8]} 31... Qe6 {[%clk 0:00:16.1]} 32. Rc7
{[%clk 0:00:04.4]} 32... Nc6 {[%clk 0:00:15.2]} 33. Qb6 {[%clk 0:00:04.1]} 33...
Ne5 {[%clk 0:00:15.1]} 34. Qxe6 {[%clk 0:00:04.5]} 34... fxe6 {[%clk 0:00:16]}
35. Kg2 {[%clk 0:00:04.8]} 35... Ng4 {[%clk 0:00:15.7]} 36. Bd4 {[%clk
0:00:04.9]} 36... e5 {[%clk 0:00:15.6]} 37. Bc5 {[%clk 0:00:05.3]} 37... Re8
{[%clk 0:00:16.2]} 38. f3 {[%clk 0:00:03.4]} 38... Nf6 {[%clk 0:00:16.8]} 39. g4
{[%clk 0:00:03.8]} 39... e4 {[%clk 0:00:17.2]} 40. g5 {[%clk 0:00:04.5]} 40...
exf3+ {[%clk 0:00:16.2]} 41. Kxf3 {[%clk 0:00:05.4]} 41... Nd5 {[%clk
0:00:16.7]} 42. Rd7 {[%clk 0:00:06]} 42... Nc3 {[%clk 0:00:15.3]} 43. Bd4 {[%clk
0:00:06.6]} 43... Nb5 {[%clk 0:00:12.8]} 44. Rxg7+ {[%clk 0:00:06.6]} 44... Kf8
{[%clk 0:00:13.3]} 45. Bf6 {[%clk 0:00:07.2]} 45... h5 {[%clk 0:00:11.4]} 46.
gxh6 {[%clk 0:00:06.2]} 46... Re6 {[%clk 0:00:11.9]} 47. Ba1 {[%clk 0:00:03.4]}
47... Rxh6 {[%clk 0:00:11.4]} 48. Kg4 {[%clk 0:00:04.1]} 48... Nd6 {[%clk
0:00:10.7]} 49. Ra7 {[%clk 0:00:04.3]} 49... Nf7 {[%clk 0:00:10.2]} 50. Ra8+
{[%clk 0:00:03.8]} 50... Ke7 {[%clk 0:00:10.5]} 51. Ra7+ {[%clk 0:00:04.7]}
51... Kf8 {[%clk 0:00:10.9]} 52. h5 {[%clk 0:00:05.2]} 52... Rc6 {[%clk
0:00:08.5]} 53. Ra8+ {[%clk 0:00:05.2]} 53... Ke7 {[%clk 0:00:08.9]} 54. Bg7
{[%clk 0:00:05.7]} 54... Rc4+ {[%clk 0:00:08]} 55. Kg3 {[%clk 0:00:05.9]} 55...
Rc5 {[%clk 0:00:06.4]} 56. h6 {[%clk 0:00:05.2]} 56... Rh5 {[%clk 0:00:06.5]}
57. Kg4 {[%clk 0:00:05.2]} 57... Rh1 {[%clk 0:00:06.1]} 58. Ra7+ {[%clk
0:00:05.9]} 58... Ke6 {[%clk 0:00:05.9]} 59. Ra6+ {[%clk 0:00:06.2]} 59... Ke7
{[%clk 0:00:06.4]} 60. Ra7+ {[%clk 0:00:06]} 60... Ke6 {[%clk 0:00:06.7]} 61.
Ra6+ {[%clk 0:00:06.5]} 61... Ke7 {[%clk 0:00:07.4]} 62. Kf5 {[%clk 0:00:07.1]}
62... Rh5+ {[%clk 0:00:06.1]} 63. Kg6 {[%clk 0:00:06.7]} 63... Rg5+ {[%clk
0:00:06]} 64. Kh7 {[%clk 0:00:06.7]} 64... Rg1 {[%clk 0:00:06.9]} 65. Bf6+
{[%clk 0:00:06.7]} 65... Ke8 {[%clk 0:00:07.6]} 66. Ra7 {[%clk 0:00:05.2]} 66...
Nd6 {[%clk 0:00:06.3]} 67. Re7+ {[%clk 0:00:03.2]} 67... Kf8 {[%clk 0:00:06.3]}
68. Ra7 {[%clk 0:00:03.9]} 68... Nf5 {[%clk 0:00:06.6]} 69. Ra5 {[%clk
0:00:03.9]} 69... Nd6 {[%clk 0:00:06]} 70. Bg7+ {[%clk 0:00:04.3]} 70... Kf7
{[%clk 0:00:06.1]} 71. Ra7+ {[%clk 0:00:05]} 71... Ke6 {[%clk 0:00:06.2]} 72.
Ra6 {[%clk 0:00:05.4]} 72... Ke7 {[%clk 0:00:04.2]} 73. Ra7+ {[%clk 0:00:04.8]}
73... Ke6 {[%clk 0:00:04.7]} 74. Kg8 {[%clk 0:00:05.1]} 74... Ne8 {[%clk
0:00:04.3]} 75. Ra6+ {[%clk 0:00:04.9]} 75... Ke7 {[%clk 0:00:04.2]} 76. Ra7+
{[%clk 0:00:05]} 76... Ke6 {[%clk 0:00:04.9]} 77. h7 {[%clk 0:00:04.9]} 77...
Nf6+ {[%clk 0:00:05.2]} 78. Kh8 {[%clk 0:00:05]} 78... Rh1 {[%clk 0:00:04.4]}
79. Ra6+ {[%clk 0:00:04.9]} 79... Ke7 {[%clk 0:00:04]} 80. Rxf6 {[%clk
0:00:05.3]} 80... Rb1 {[%clk 0:00:03.7]} 81. Kg8 {[%clk 0:00:05]} 81... Rb8+
{[%clk 0:00:04.4]} 82. Rf8 {[%clk 0:00:05.7]} 82... Rb6 {[%clk 0:00:03.3]} 83.
h8=Q {[%clk 0:00:05.6]} 83... Kd7 {[%clk 0:00:03.7]} 84. Qh3+ {[%clk 0:00:05.3]}
84... Re6 {[%clk 0:00:03.5]} 85. Rf6 {[%clk 0:00:05.4]} 85... Kd8 {[%clk
0:00:03.1]} 86. Qxe6 {[%clk 0:00:06.2]} 86... Kc7 {[%clk 0:00:03.4]} 87. Rf7+
{[%clk 0:00:06.9]} 87... Kd8 {[%clk 0:00:04.3]} 88. Bf6# {[%clk 0:00:07.2]} 1-0

[Event "Early-Titled-Tuesday-Blitz-January-30-2024"]
[Site "Chess.com"]
[Date "2024.01.30"]
[Round "4"]
[White "Ducke13"]
[Black "UnTucopalaTimba"]
[Result "1-0"]
[WhiteElo "2281"]
[BlackElo "1917"]
[TimeControl "180+1"]
[EndTime "8:35:56 PST"]
[Termination "Ducke13 won by resignation"]

1. d4 {[%clk 0:02:52.4]} 1... Nf6 {[%clk 0:02:58.8]} 2. g3 {[%clk 0:02:52]} 2...
e6 {[%clk 0:02:56.2]} 3. Nf3 {[%clk 0:02:49.6]} 3... d5 {[%clk 0:02:53.2]} 4.
Bg2 {[%clk 0:02:50]} 4... Be7 {[%clk 0:02:48.2]} 5. O-O {[%clk 0:02:50.4]} 5...
O-O {[%clk 0:02:48.1]} 6. c4 {[%clk 0:02:51.1]} 6... dxc4 {[%clk 0:02:47.9]} 7.
Qc2 {[%clk 0:02:48.8]} 7... a6 {[%clk 0:02:47.5]} 8. a4 {[%clk 0:02:49.3]} 8...
Bd7 {[%clk 0:02:47.2]} 9. Rd1 {[%clk 0:02:49.8]} 9... Bc6 {[%clk 0:02:43.8]} 10.
Nc3 {[%clk 0:02:50.2]} 10... Bb4 {[%clk 0:02:33.5]} 11. Bg5 {[%clk 0:02:47.5]}
11... h6 {[%clk 0:02:31.8]} 12. Bxf6 {[%clk 0:02:47.2]} 12... Qxf6 {[%clk
0:02:31]} 13. e4 {[%clk 0:02:44.6]} 13... Nd7 {[%clk 0:02:16]} 14. d5 {[%clk
0:02:36]} 14... exd5 {[%clk 0:02:00.8]} 15. exd5 {[%clk 0:02:36.9]} 1-0

[Event "Early-Titled-Tuesday-Blitz-January-30-2024"]
[Site "Chess.com"]
[Date "2024.01.30"]
[Round "4"]
[White "dianamirza"]
[Black "Aanna12"]
[Result "0-1"]
[WhiteElo "1996"]
[BlackElo "2310"]
[TimeControl "180+1"]
[EndTime "8:36:36 PST"]
[Termination "Aanna12 won by resignation"]

1. d4 {[%clk 0:03:00]} 1... Nf6 {[%clk 0:02:56.3]} 2. Nf3 {[%clk 0:02:58.1]}
2... d6 {[%clk 0:02:54.7]} 3. c4 {[%clk 0:02:56.4]} 3... Nbd7 {[%clk 0:02:54.6]}
4. Nc3 {[%clk 0:02:56.6]} 4... e5 {[%clk 0:02:54]} 5. d5 {[%clk 0:02:55.4]} 5...
Be7 {[%clk 0:02:52.4]} 6. e4 {[%clk 0:02:55.4]} 6... O-O {[%clk 0:02:51.7]} 7.
b4 {[%clk 0:02:55]} 7... a5 {[%clk 0:02:50.5]} 8. bxa5 {[%clk 0:02:50.5]} 8...
Nc5 {[%clk 0:02:45.6]} 9. Bd3 {[%clk 0:02:50.6]} 9... Rxa5 {[%clk 0:02:44.9]}
10. O-O {[%clk 0:02:47.8]} 10... Nxd3 {[%clk 0:02:41]} 11. Qxd3 {[%clk
0:02:47.6]} 11... Nd7 {[%clk 0:02:41.2]} 12. Bd2 {[%clk 0:02:38.5]} 12... Nc5
{[%clk 0:02:40.8]} 13. Qc2 {[%clk 0:02:33.3]} 13... Ra8 {[%clk 0:02:40.7]} 14.
Rab1 {[%clk 0:02:27.5]} 14... f5 {[%clk 0:02:37.5]} 15. Be3 {[%clk 0:02:04.5]}
15... fxe4 {[%clk 0:02:27.3]} 16. Nxe4 {[%clk 0:01:52.6]} 16... Nxe4 {[%clk
0:02:26.2]} 17. Qxe4 {[%clk 0:01:48.8]} 17... Bf5 {[%clk 0:02:26.1]} 0-1

[Event "Early-Titled-Tuesday-Blitz-January-30-2024"]
[Site "Chess.com"]
[Date "2024.01.30"]
[Round "4"]
[White "Nechitaylo_Nikita"]
[Black "PattyCastillo"]
[Result "1-0"]
[WhiteElo "2308"]
[BlackElo "1993"]
[TimeControl "180+1"]
[EndTime "8:36:43 PST"]
[Termination "Nechitaylo_Nikita won by resignation"]

1. d4 {[%clk 0:03:00.9]} 1... d5 {[%clk 0:02:58.8]} 2. c4 {[%clk 0:03:01.5]}
2... c6 {[%clk 0:02:58.6]} 3. cxd5 {[%clk 0:03:01.7]} 3... cxd5 {[%clk
0:02:58.5]} 4. Bf4 {[%clk 0:03:02.4]} 4... Nf6 {[%clk 0:02:58.2]} 5. e3 {[%clk
0:03:02.9]} 5... Bf5 {[%clk 0:02:57.8]} 6. Nc3 {[%clk 0:03:02.4]} 6... a6 {[%clk
0:02:56.6]} 7. Nf3 {[%clk 0:02:44.6]} 7... e6 {[%clk 0:02:47.5]} 8. Qb3 {[%clk
0:02:37.7]} 8... Ra7 {[%clk 0:02:30.2]} 9. Be2 {[%clk 0:02:04]} 9... Bd6 {[%clk
0:02:24.9]} 10. Qa4+ {[%clk 0:01:57.2]} 10... Ke7 {[%clk 0:02:15.5]} 11. Bxd6+
{[%clk 0:01:44.7]} 11... Qxd6 {[%clk 0:02:14.9]} 12. Nb5 {[%clk 0:01:45]} 12...
Qd7 {[%clk 0:02:09.2]} 13. Qa3+ {[%clk 0:01:44.1]} 13... Ke8 {[%clk 0:02:02.9]}
14. Nxa7 {[%clk 0:01:42.6]} 1-0